lending/lending_fUSD_20240417
["ID","MTS","AMOUNT","RATE_DAILY","PERIOD"]
[322825229,1713367831894,-162473.02502248,0.00015517,2]
[322825231,1713367831904,-150.99,0.00015518,2]
[322825232,1713367831913,-886.94,0.00015518,2]
[322825233,1713367831923,-499.99,0.00015518,2]
[322825234,1713367831933,-541152.06656134,0.00015518,2]
[322825235,1713367831942,-84553.03936157,0.00015519,2]
[322825236,1713367831951,-150.14,0.00015542,2]
[322825237,1713367831961,-2288.01418772,0.00015546,2]
[322825238,1713367831970,-294.14,0.00015552,2]
[322825239,1713367831986,-9999.99,0.00015552,2]
[322825240,1713367831996,-990.71,0.00015552,2]
[322825241,1713367832005,-155.38862251,0.00015553,2]
[322825242,1713367832015,-158.42,0.00015553,2]
[322825243,1713367832027,-150.99,0.00015553,2]
[322825244,1713367832040,-9999.99,0.00015553,2]
[322825246,1713367832051,-294.14,0.00015593,2]
[322825247,1713367832061,-155.38862251,0.00015616,2]
[322825248,1713367832070,-294.14,0.00015634,2]
[322825250,1713367832080,-150.99,0.00015655,2]
[322825251,1713367832089,-4768.98,0.00015655,2]
[322825252,1713367832098,-1160.71,0.0001567,2]
[322825253,1713367832108,-150.99,0.00015675,2]
[322825254,1713367832117,-294.14,0.00015676,2]
[322825255,1713367832127,-157.31206403,0.00015679,2]
[322825256,1713367832137,-25398.79620746,0.00015679,2]
[322825257,1713367832147,-155.38862251,0.00015679,2]
[322825258,1713367832156,-150.27177791,0.00015679,2]
[322825259,1713367832165,-1279.32448358,0.000157,2]
[322825260,1713367832175,-294.14,0.00015717,2]
[322825261,1713367832184,-294.14,0.00015759,2]
[322825262,1713367832194,-178.35423099,0.00015769,2]
[322825263,1713367832203,-217.264266,0.00015777,2]
[322825264,1713367832215,-5021.86519795,0.00015777,2]
[322825265,1713367832226,-86192.0,0.00015779,2]
[322825266,1713367832237,-294.14,0.000158,2]
[322825267,1713367832246,-294.14,0.00015841,2]
[322825268,1713367832255,-294.14,0.00015883,2]
[322825269,1713367832265,-1000.0,0.00016,2]
[322825270,1713367832275,-2580.0,0.00016,2]
[322825271,1713367832291,-25398.79620743,0.00016154,2]
[322825272,1713367832301,-729.82657471,0.00016314,2]
[322825273,1713367832311,-250.92,0.00016414,2]
[322825274,1713367832321,-1223.11342604,0.00016627,2]
[322825275,1713367832331,-25398.79620743,0.00016628,2]
[322825276,1713367832341,-166.93,0.00016702,2]
[322825277,1713367832350,-588.83,0.00016712,2]
[322825278,1713367832360,-680.0,0.00016787,2]
[322825279,1713367832369,-729.82657468,0.00016969,2]
[322825280,1713367832379,-1000.0,0.00017,2]
[322825281,1713367832390,-400.0,0.00017016,2]
[322825282,1713367832399,-210.0,0.00017051,2]
[322825283,1713367832409,-25398.79620743,0.00017103,2]
[322825284,1713367832420,-162.88,0.00017131,2]
[322825285,1713367832429,-367.32,0.00017254,2]
[322825286,1713367832439,-720.15,0.00017254,2]
[322825287,1713367832449,-6130.39,0.00017254,2]
[322825288,1713367832458,-150.27177791,0.00017419,2]
[322825289,1713367832468,-25398.79620743,0.00017578,2]
[322825290,1713367832478,-729.82657468,0.00017624,2]
[322825291,1713367832488,-642.06,0.0001765,2]
[322825292,1713367832498,-154.37,0.00017665,2]
[322825293,1713367832507,-154.37,0.00017771,2]
[322825294,1713367832517,-250.92,0.00017784,2]
[322825295,1713367832526,-700.0,0.000179,6]
[322825296,1713367832540,-355.0,0.00018,2]
[322825297,1713367832549,-12596.29249602,0.00018,2]
[322825298,1713367832559,-25398.79620743,0.00018052,2]
[322825299,1713367832568,-602.0,0.00018083,2]
[322825300,1713367832578,-770.86293236,0.000181,2]
[322825301,1713367832587,-729.82657468,0.00018279,2]
[322825302,1713367832597,-155.0,0.00018298,2]
[322825303,1713367832606,-166.93,0.00018474,2]
[322825304,1713367832616,-150.14,0.00018517,2]
[322825305,1713367832626,-25398.79620743,0.00018527,2]
[322825306,1713367832636,-1413.455,0.00018539,2]
[322825307,1713367832646,-457.48246438,0.00018539,2]
[322825308,1713367832661,-606.0,0.00018539,2]
[322825309,1713367832673,-1280.279,0.00018539,2]
[322825310,1713367832685,-3541.23853562,0.00018539,2]
[322825311,1713367832695,-5721.0,0.00018539,2]
[322825312,1713367832705,-27199.93467464,0.00018539,2]
[322825313,1713367832720,-10453.06532536,0.00018539,2]
[322825314,1713367832730,-165.415,0.00018539,2]
[322825315,1713367832739,-680.0,0.00018652,2]
[322825316,1713367832749,-770.86293232,0.000188,2]
[322825317,1713367832759,-25191.07217235,0.00018822,2]
[322825318,1713367832768,-541.0,0.00018825,2]
[322825319,1713367832778,-1228.0,0.00018825,2]
[322825320,1713367832793,-806.0,0.00018825,2]
[322825321,1713367832802,-280.0,0.00018825,2]
[322825322,1713367832812,-609.0,0.00018825,2]
[322825323,1713367832821,-1949.0,0.00018825,2]
[322825324,1713367832830,-436.0,0.00018825,2]
[322825325,1713367832840,-3077.0,0.00018825,2]
[322825326,1713367832850,-211.39,0.00018825,2]
[322825327,1713367832859,-1472.0,0.00018825,2]
[322825328,1713367832870,-399.0,0.00018825,2]
[322825329,1713367832880,-2441.0,0.00018825,2]
[322825330,1713367832889,-1638.0,0.00018825,2]
[322825331,1713367832899,-152.166,0.00018825,2]
[322825332,1713367832910,-214.0,0.00018825,2]
[322825333,1713367832921,-355.0,0.00018825,2]
[322825334,1713367832931,-443.0,0.00018825,2]
[322825335,1713367832941,-1140.0,0.00018825,2]
[322825336,1713367832951,-602.0,0.00018905,2]
[322825337,1713367832961,-400.0,0.00018906,2]
[322825338,1713367832974,-729.82657468,0.00018935,2]
[322825339,1713367832990,-634.0,0.00019,2]
[322825340,1713367833002,-1728.0,0.00019,2]
[322825341,1713367833012,-5778.10419533,0.00019,2]
[322825342,1713367833027,-5535.09142145,0.00019,2]
[322825343,1713367833048,-366.3601412,0.00019,2]
[322825344,1713367833061,-272.4297767,0.00019,2]
[322825345,1713367833073,-460.000005,0.00019,2]
[322825346,1713367833086,-2702.6137866,0.00019,2]
[322825347,1713367833098,-3391.0572534,0.00019,2]
[322825348,1713367833109,-540.03908459,0.00019,2]
[322825349,1713367833121,-1819.35,0.00019,2]
[322825350,1713367833133,-3216.3,0.00019,2]
[322825371,1713367837800,-613.65128273,0.00019,2]
[322825374,1713367837897,-965.202015,0.00019,2]
[322825375,1713367837912,-488.968,0.00019,2]
[322825376,1713367837945,-265.6478271,0.00019,2]
[322825377,1713367838033,-3930.55985511,0.00019,2]
[322825378,1713367838055,-1011.160858,0.00019,2]
[322825379,1713367838070,-956.92894464,0.00019,2]
[322825380,1713367838132,-433.05379998,0.00019,2]
[322825382,1713367838146,-621.8,0.00019,2]
[322825385,1713367838164,-52191.46448462,0.00019,2]
[322825386,1713367838175,-1000.0,0.00019,2]
[322825387,1713367838187,-318.19655851,0.00019,2]
[322825388,1713367838199,-10895.33895689,0.00019001,2]
[322825389,1713367838213,-14503.45725054,0.00019001,2]
[322825390,1713367838224,-162.88,0.00019034,2]
[322825391,1713367838236,-150.27177791,0.0001916,2]
[322825393,1713367838249,-420.714,0.00019165,2]
[322825395,1713367838260,-420.714,0.00019173,2]
[322825397,1713367838271,-500.0,0.00019178,2]
[322825399,1713367838281,-500.0,0.00019178,2]
[322825401,1713367838298,-500.0,0.00019178,2]
[322825403,1713367838310,-527.63552638,0.00019178,2]
[322825406,1713367838322,-200.0,0.00019178,2]
[322825407,1713367838336,-2013.0,0.00019178,2]
[322825408,1713367838348,-1500.0,0.00019178,2]
[322825409,1713367838359,-548.99,0.00019178,2]
[322825410,1713367838371,-420.714,0.00019189,2]
[322825411,1713367838384,-420.714,0.00019197,2]
[322825412,1713367838395,-3869.82317102,0.000192,2]
[322825413,1713367838406,-420.714,0.00019204,2]
[322825414,1713367838417,-420.714,0.0001922,2]
[322825415,1713367838429,-420.714,0.00019228,2]
[322825416,1713367838441,-420.714,0.00019236,2]
[322825417,1713367838451,-173.32986147,0.000194,2]
[322825418,1713367838462,-367.32,0.00019411,2]
[322825419,1713367838474,-25398.79620743,0.00019476,2]
[322825420,1713367838485,-770.86293232,0.000195,2]
[322825421,1713367838497,-729.82657468,0.0001959,2]
[322825422,1713367838508,-245.39,0.0001959,7]
[322825423,1713367838520,-150.5,0.000196,7]
[322825424,1713367838532,-150.5,0.0001961,7]
[322825425,1713367838555,-602.0,0.00019726,2]
[322825426,1713367838567,-1000.0,0.00019726,2]
[322825427,1713367838579,-682.0,0.00019819,2]
[322825428,1713367838590,-172.28686063,0.000199,2]
[322825429,1713367838602,-172.28686036,0.000199,2]
[322825430,1713367838614,-172.28686036,0.000199,2]
[322825431,1713367838624,-172.28686036,0.000199,2]
[322825432,1713367838635,-172.28686036,0.000199,2]
[322825433,1713367838645,-172.28686036,0.000199,2]
[322825434,1713367838655,-172.28686036,0.000199,2]
[322825435,1713367838666,-172.28686036,0.000199,2]
[322825436,1713367838676,-172.28686036,0.000199,2]
[322825437,1713367838687,-172.28686036,0.000199,2]
[322825438,1713367838697,-172.28686036,0.000199,2]
[322825439,1713367838709,-172.28686036,0.000199,2]
[322825440,1713367838721,-172.28686036,0.000199,2]
[322825441,1713367838731,-172.28686036,0.000199,2]
[322825442,1713367838742,-172.28686036,0.000199,2]
[322825443,1713367838752,-172.28686036,0.000199,2]
[322825444,1713367838766,-172.28686036,0.000199,2]
[322825445,1713367838777,-172.28686036,0.000199,2]
[322825446,1713367838790,-172.28686036,0.000199,2]
[322825447,1713367838801,-172.28686036,0.000199,2]
[322825448,1713367838811,-172.28686036,0.000199,2]
[322825449,1713367838822,-172.28686036,0.000199,2]
[322825450,1713367838833,-172.28686036,0.000199,2]
[322825451,1713367838844,-172.28686036,0.000199,2]
[322825452,1713367838854,-172.28686036,0.000199,2]
[322825453,1713367838866,-172.28686036,0.000199,2]
[322825454,1713367838877,-172.28686036,0.000199,2]
[322825455,1713367838888,-172.28686036,0.000199,2]
[322825456,1713367838899,-172.28686036,0.000199,2]
[322825457,1713367838910,-172.28686036,0.000199,2]
[322825458,1713367838920,-172.28686036,0.000199,2]
[322825459,1713367838931,-172.28686036,0.000199,2]
[322825460,1713367838942,-172.28686036,0.000199,2]
[322825461,1713367838952,-172.28686036,0.000199,2]
[322825462,1713367838963,-172.28686036,0.000199,2]
[322825463,1713367838974,-172.28686036,0.000199,2]
[322825464,1713367838988,-172.28686036,0.000199,2]
[322825465,1713367838999,-172.28686036,0.000199,2]
[322825466,1713367839009,-172.28686036,0.000199,2]
[322825467,1713367839020,-172.28686036,0.000199,2]
[322825468,1713367839032,-172.28686036,0.000199,2]
[322825469,1713367839046,-172.28686036,0.000199,2]
[322825470,1713367839057,-172.28686036,0.000199,2]
[322825471,1713367839067,-172.28686036,0.000199,2]
[322825472,1713367839078,-172.28686036,0.000199,2]
[322825473,1713367839088,-172.28686036,0.000199,2]
[322825474,1713367839099,-172.28686036,0.000199,2]
[322825475,1713367839110,-172.28686036,0.000199,2]
[322825476,1713367839121,-172.28686036,0.000199,2]
[322825477,1713367839132,-172.28686036,0.000199,2]
[322825478,1713367839144,-172.28686036,0.000199,2]
[322825479,1713367839154,-172.28686036,0.000199,2]
[322825480,1713367839165,-172.28686036,0.000199,2]
[322825481,1713367839175,-172.28686036,0.000199,2]
[322825482,1713367839186,-172.28686036,0.000199,2]
[322825483,1713367839197,-172.28686036,0.000199,2]
[322825484,1713367839207,-172.28686036,0.000199,2]
[322825485,1713367839219,-172.28686036,0.000199,2]
[322825486,1713367839230,-172.28686036,0.000199,2]
[322825487,1713367839242,-172.28686036,0.000199,2]
[322825488,1713367839252,-172.28686036,0.000199,2]
[322825489,1713367839266,-172.28686036,0.000199,2]
[322825490,1713367839277,-172.28686036,0.000199,2]
[322825491,1713367839289,-172.28686036,0.000199,2]
[322825492,1713367839301,-172.28686036,0.000199,2]
[322825493,1713367839312,-172.28686036,0.000199,2]
[322825494,1713367839325,-172.28686036,0.000199,2]
[322825495,1713367839335,-172.28686036,0.000199,2]
[322825496,1713367839347,-172.28686036,0.000199,2]
[322825497,1713367839358,-172.28686036,0.000199,2]
[322825498,1713367839369,-172.28686036,0.000199,2]
[322825499,1713367839380,-172.28686036,0.000199,2]
[322825500,1713367839391,-172.28686036,0.00019903,2]
[322825501,1713367839402,-642.06,0.00019914,2]
[322825502,1713367839413,-3162.57273202,0.00019947,2]
[322825503,1713367839424,-1292.16997701,0.00019947,2]
[322825504,1713367839434,-25398.79620743,0.00019951,2]
[322825505,1713367839446,-172.28686036,0.00019961,2]
[322825507,1713367839456,-200.0,0.00019972,2]
[322825508,1713367839466,-1000.0,0.0001999,2]
[322825509,1713367839477,-6130.39,0.00019994,2]
[322825510,1713367839488,-982.77141677,0.0002,2]
[322825511,1713367839499,-155.0,0.0002,2]
[322825512,1713367839509,-3065.67342855,0.0002,2]
[322825513,1713367839519,-176.0,0.0002,2]
[322825515,1713367839530,-762.05712181,0.0002,2]
[322825517,1713367839547,-2100.0,0.0002,2]
[322825518,1713367839558,-1230.85038685,0.0002,2]
[322825519,1713367839568,-1765.57043751,0.0002,2]
[322825520,1713367839579,-859.35539064,0.0002,2]
[322825521,1713367839592,-1256.5732188,0.0002,2]
[322825522,1713367839602,-155.0,0.0002,2]
[322825526,1713367839614,-155.0,0.0002,2]
[322825529,1713367839625,-155.0,0.0002,2]
[322825530,1713367839636,-38764.57938307,0.0002,2]
[322825531,1713367839648,-186.07241725,0.0002,2]
[322825532,1713367839659,-195.40136813,0.0002001,2]
[322825533,1713367839670,-6219.13910648,0.00020016,2]
[322825534,1713367839681,-3405.69841846,0.00020017,2]
[322825535,1713367839692,-172.28686036,0.0002002,2]
[322825537,1713367839703,-172.28686036,0.00020079,2]
[322825539,1713367839716,-1100.0,0.000201,7]
[322825540,1713367839728,-150.14,0.00020135,2]
[322825541,1713367839739,-172.28686036,0.00020137,2]
[322825542,1713367839749,-3242.36,0.00020145,2]
[322825543,1713367839761,-12997.33,0.00020145,2]
[322825544,1713367839772,-164.15,0.00020145,2]
[322825545,1713367839783,-1277.84,0.00020145,2]
[322825546,1713367839805,-173.32986147,0.0002015,2]
[322825547,1713367839816,-172.28686036,0.00020196,2]
[322825548,1713367839827,-770.86293232,0.000202,2]
[322825549,1713367839840,-1500.0,0.000202,7]
[322825550,1713367839851,-729.82657468,0.00020245,2]
[322825551,1713367839862,-166.93,0.00020246,2]
[322825552,1713367839874,-172.28686036,0.00020255,2]
[322825553,1713367839885,-1900.0,0.000203,7]
[322825554,1713367839896,-168.11,0.00020306,2]
[322825555,1713367839907,-172.28686036,0.00020313,2]
[322825556,1713367839918,-172.28686036,0.00020372,2]
[322825557,1713367839930,-500.0,0.00020376,2]
[322825558,1713367839941,-500.0,0.00020385,2]
[322825559,1713367839952,-500.0,0.00020393,2]
[322825560,1713367839964,-300.0,0.000204,7]
[322825561,1713367839975,-500.0,0.00020402,2]
[322825562,1713367839989,-500.0,0.00020411,2]
[322825563,1713367839999,-500.0,0.0002042,2]
[322825564,1713367840010,-25398.79620743,0.00020425,2]
[322825565,1713367840022,-500.0,0.00020429,2]
[322825566,1713367840037,-172.28686036,0.00020431,2]
[322825567,1713367840050,-500.0,0.00020437,2]
[322825568,1713367840060,-500.0,0.00020446,2]
[322825569,1713367840071,-500.0,0.00020455,2]
[322825570,1713367840081,-3405.69841846,0.00020458,2]
[322825571,1713367840092,-500.0,0.00020464,2]
[322825572,1713367840103,-500.0,0.00020473,2]
[322825573,1713367840116,-500.0,0.00020481,2]
[322825574,1713367840128,-172.28686036,0.00020489,2]
[322825575,1713367840139,-500.0,0.0002049,2]
[322825576,1713367840149,-500.0,0.00020499,2]
[322825577,1713367840160,-150.0,0.000205,2]
[322825578,1713367840170,-300.0,0.000205,7]
[322825579,1713367840181,-500.0,0.00020508,2]
[322825580,1713367840191,-500.0,0.00020517,2]
[322825581,1713367840203,-680.0,0.00020518,2]
[322825582,1713367840214,-500.0,0.00020525,2]
[322825583,1713367840225,-500.0,0.00020534,2]
[322825584,1713367840235,-200.0,0.00020534,2]
[322825585,1713367840246,-1000.0,0.00020534,2]
[322825586,1713367840256,-500.0,0.00020534,2]
[322825587,1713367840266,-200.0,0.00020534,2]
[322825588,1713367840277,-500.0,0.00020543,2]
[322825589,1713367840291,-160.0,0.00020543,2]
[322825590,1713367840303,-4975.35323519,0.00020543,2]
[322825591,1713367840317,-180.4518861,0.00020547,2]
[322825592,1713367840327,-172.66,0.00020548,2]
[322825593,1713367840338,-602.0,0.00020548,2]
[322825594,1713367840348,-172.28686036,0.00020548,2]
[322825595,1713367840358,-3405.69841846,0.00020588,2]
[322825596,1713367840369,-300.0,0.000206,7]
[322825597,1713367840379,-172.28686036,0.00020607,2]
[322825598,1713367840390,-150.0,0.00020634,2]
[322825599,1713367840400,-150.0,0.00020637,2]
[322825600,1713367840411,-150.0,0.00020639,2]
[322825601,1713367840421,-150.0,0.00020649,2]
[322825602,1713367840432,-150.0,0.00020654,2]
[322825603,1713367840443,-172.28686036,0.00020665,2]
[322825604,1713367840454,-150.0,0.0002067,2]
[322825605,1713367840465,-150.0,0.00020674,2]
[322825606,1713367840476,-150.0,0.00020682,2]
[322825607,1713367840486,-150.0,0.00020683,2]
[322825608,1713367840499,-167.44635764,0.00020684,2]
[322825609,1713367840509,-150.0,0.00020698,2]
[322825610,1713367840519,-150.0,0.00020698,2]
[322825611,1713367840530,-300.0,0.000207,7]
[322825612,1713367840547,-150.0,0.00020701,2]
[322825613,1713367840557,-150.0,0.00020703,2]
[322825614,1713367840568,-150.0,0.00020712,2]
[322825615,1713367840578,-150.0,0.00020717,2]
[322825616,1713367840588,-172.28686036,0.00020724,2]
[322825617,1713367840599,-150.0,0.00020727,2]
[322825618,1713367840609,-150.0,0.00020735,2]
[322825619,1713367840620,-150.0,0.00020737,2]
[322825620,1713367840630,-150.0,0.00020737,2]
[322825621,1713367840640,-150.0,0.00020738,2]
[322825622,1713367840650,-150.0,0.00020752,2]
[322825623,1713367840660,-150.0,0.00020762,2]
[322825624,1713367840670,-300.0,0.00020762,2]
[322825625,1713367840680,-150.0,0.00020763,2]
[322825626,1713367840690,-150.0,0.00020764,2]
[322825627,1713367840700,-150.0,0.00020775,2]
[322825628,1713367840710,-150.0,0.0002078,2]
[322825629,1713367840721,-150.0,0.0002078,2]
[322825630,1713367840731,-172.28686036,0.00020783,2]
[322825631,1713367840741,-300.0,0.00020784,2]
[322825632,1713367840750,-298.99850738,0.00020788,2]
[322825633,1713367841070,-6933.09121626,0.0002079,2]
[322825634,1713367841091,-579.43091,0.0002079,2]
[322825635,1713367841109,-150.0,0.00020791,2]
[322825636,1713367841121,-400.0,0.00020797,2]
[322825637,1713367841132,-150.0,0.000208,2]
[322825638,1713367841142,-150.0,0.00020806,2]
[322825639,1713367841152,-150.0,0.00020807,2]
[322825640,1713367841161,-150.0,0.0002081,2]
[322825641,1713367841171,-150.0,0.00020814,2]
[322825642,1713367841181,-150.0,0.00020816,2]
[322825643,1713367841191,-150.0,0.00020818,2]
[322825644,1713367841200,-300.0,0.00020818,2]
[322825645,1713367841210,-150.0,0.00020824,2]
[322825646,1713367841219,-150.0,0.00020828,2]
[322825647,1713367841229,-172.28686036,0.00020841,2]
[322825648,1713367841238,-150.0,0.00020844,2]
[322825649,1713367841248,-183.4169499,0.00020846,2]
[322825650,1713367841258,-150.0,0.00020847,2]
[322825652,1713367841268,-150.0,0.00020848,2]
[322825653,1713367841279,-150.0,0.00020857,2]
[322825654,1713367841292,-150.0,0.00020859,2]
[322825655,1713367841301,-150.0,0.00020861,2]
[322825656,1713367841310,-150.0,0.00020861,2]
[322825657,1713367841319,-150.0,0.00020862,2]
[322825658,1713367841329,-150.0,0.00020869,2]
[322825659,1713367841338,-150.0,0.00020869,2]
[322825660,1713367841348,-150.0,0.0002088,2]
[322825661,1713367841358,-300.0,0.00020885,2]
[322825662,1713367841367,-150.0,0.00020888,2]
[322825663,1713367841377,-150.0,0.00020888,2]
[322825664,1713367841386,-150.0,0.00020892,2]
[322825665,1713367841395,-652.5349,0.00020895,2]
[322825666,1713367841405,-150.0,0.00020896,2]
[322825667,1713367841414,-183.8409995,0.00020899,2]
[322825668,1713367841425,-183.8409995,0.00020899,2]
[322825669,1713367841435,-183.8409995,0.000209,2]
[322825670,1713367841446,-10000.0,0.000209,2]
[322825671,1713367841456,-770.86293232,0.000209,2]
[322825672,1713367841466,-172.28686036,0.000209,2]
[322825673,1713367841476,-25398.79620743,0.000209,2]
[322825674,1713367841486,-150.27177791,0.000209,2]
[322825676,1713367841496,-173.32986147,0.000209,2]
[322825679,1713367841507,-13532.19838307,0.000209,2]
[322825682,1713367841517,-15693.63234908,0.000209,3]
[322825683,1713367841528,-366.38091722,0.000209,2]
[322825684,1713367841544,-932.80020068,0.000209,2]
[322825685,1713367841554,-729.82657468,0.000209,2]
[322825686,1713367841564,-176.79388861,0.000209,3]
[322825687,1713367841574,-183.8409995,0.000209,2]
[322825688,1713367841584,-150.0,0.00020906,2]
[322825689,1713367841594,-150.0,0.00020906,2]
[322825690,1713367841604,-150.0,0.00020906,2]
[322825691,1713367841614,-150.0,0.00020907,2]
[322825692,1713367841624,-150.0,0.00020915,2]
[322825693,1713367841635,-150.0,0.00020936,2]
[322825694,1713367841646,-162.88,0.00020937,2]
[322825695,1713367841658,-301.11749382,0.00020939,2]
[322825696,1713367841669,-150.0,0.00020942,2]
[322825697,1713367841679,-33728.39811849,0.00020976,4]
[322825698,1713367841690,-4060.7635796,0.00020978,2]
[322825699,1713367841700,-300.0,0.0002098,2]
[322825700,1713367841710,-150.14,0.0002099,2]
[322825701,1713367841720,-150.14,0.0002099,2]
[322825702,1713367841729,-150.14,0.0002099,2]
[322825703,1713367841739,-150.14,0.0002099,2]
[322825704,1713367841749,-150.14,0.0002099,2]
[322825705,1713367841759,-150.14,0.0002099,2]
[322825706,1713367841769,-150.14,0.0002099,2]
[322825707,1713367841779,-150.14,0.0002099,2]
[322825708,1713367841794,-150.14,0.0002099,2]
[322825709,1713367841805,-150.14,0.0002099,2]
[322825710,1713367841814,-150.14,0.0002099,2]
[322825711,1713367841824,-150.14,0.0002099,2]
[322825712,1713367841833,-150.14,0.0002099,2]
[322825713,1713367841843,-150.14,0.0002099,2]
[322825714,1713367841853,-150.14,0.0002099,2]
[322825715,1713367841864,-150.14,0.0002099,2]
[322825716,1713367841874,-150.14,0.0002099,2]
[322825717,1713367841883,-150.14,0.0002099,2]
[322825718,1713367841893,-150.14,0.0002099,2]
[322825719,1713367841903,-150.14,0.0002099,2]
[322825720,1713367841912,-210.32926479,0.00020997,2]
[322825721,1713367841923,-155.0,0.00020997,2]
[322825722,1713367841933,-376.34801074,0.00020997,2]
[322825723,1713367841943,-2212.48519324,0.00020997,2]
[322825724,1713367841951,-245.05813805,0.00020997,2]
[322825725,1713367841962,-708.94208122,0.00020997,2]
[322825726,1713367841972,-155.08527208,0.00020997,2]
[322825727,1713367841988,-174.12211115,0.00020997,2]
[322825728,1713367841997,-2356.92753375,0.00020997,2]
[322825729,1713367842007,-164.29423485,0.00020997,2]
[322825730,1713367842017,-161.7641727,0.00020997,2]
[322825731,1713367842029,-206.50643448,0.00020997,2]
[322825732,1713367842040,-155.0,0.00020997,2]
[322825733,1713367842054,-194.14929762,0.00020997,2]
[322825734,1713367842064,-362.75793443,0.00020997,2]
[322825735,1713367842074,-705.57830306,0.00020997,2]
[322825736,1713367842084,-155.0,0.00020997,2]
[322825737,1713367842094,-231.94018651,0.00020997,2]
[322825738,1713367842104,-155.0,0.00020997,2]
[322825739,1713367842114,-419.22939929,0.00020997,2]
[322825740,1713367842124,-342.45381594,0.00020997,2]
[322825741,1713367842134,-1242.81455954,0.00020997,2]
[322825742,1713367842143,-155.0,0.00020997,2]
[322825743,1713367842152,-161.90548675,0.00020997,2]
[322825744,1713367842162,-3378.54108249,0.00020997,2]
[322825745,1713367842172,-295.47476867,0.00020997,2]
[322825746,1713367842182,-3772.4841615,0.00020997,2]
[322825747,1713367842192,-512.29685992,0.00020997,2]
[322825748,1713367842201,-155.0,0.00020997,2]
[322825749,1713367842212,-4688.44954179,0.00020997,2]
[322825750,1713367842221,-313.57148398,0.00020997,2]
[322825751,1713367842231,-445.31437047,0.00020997,2]
[322825752,1713367842240,-207.65451655,0.00020997,2]
[322825753,1713367842249,-498.0703147,0.00020997,2]
[322825754,1713367842259,-2131.01474188,0.00020997,2]
[322825755,1713367842269,-10558.75178458,0.00020997,2]
[322825756,1713367842280,-155.13601819,0.00020998,2]
[322825757,1713367842293,-621.31864924,0.00020998,2]
[322825758,1713367842302,-1424.88577514,0.00020998,2]
[322825759,1713367842312,-1805.61590668,0.00020998,2]
[322825760,1713367842323,-192.65977786,0.00020998,2]
[322825761,1713367842333,-404.73102028,0.00020998,2]
[322825762,1713367842343,-15962.89035972,0.00020998,4]
[322825763,1713367842352,-407.4048314,0.00020999,2]
[322825764,1713367842362,-232309.06519556,0.00021,2]
[322825765,1713367842372,-2649.36868242,0.00021,3]
[322825766,1713367842382,-334.63684762,0.00021,2]
[322825767,1713367842392,-95907.37677784,0.00021,2]
[322825772,1713367842536,-605.40632033,0.000209,2]
[322825773,1713367842557,-54037.216644,0.00021,2]
[322825774,1713367842574,-5930.8974173,0.00021,2]
[322825775,1713367842588,-16868.4291391,0.00021,2]
[322825817,1713367842846,-1940.17824,0.00018999,2]
[322825821,1713367842859,-3601.84352145,0.00018999,2]
[322825824,1713367842869,-150.0,0.00020729,2]
[322825828,1713367842879,-150.0,0.00020745,2]
[322825832,1713367842889,-150.0,0.00020746,2]
[322825837,1713367842900,-150.0,0.00020758,2]
[322825842,1713367842909,-40.99647855,0.00020763,2]
[322825846,1713367842921,-109.00352145,0.00020763,2]
[322825851,1713367842931,-150.0,0.00020776,2]